bitfinex/quotes_ETHUSD_20230103
["timestamp","ask_amount","ask_price","bid_price","bid_amount"]
[1672728487576,80.39841924,1219.4,1219.3,0.65042295]
[1672728489276,70.55751924,1219.4,1219.3,0.65042295]
[1672728490410,50.87571924,1219.4,1219.3,0.65042295]
[1672728490629,49.06371924,1219.4,1219.3,10.49213295]
[1672728490854,49.06371924,1219.4,1219.3,0.74942295]
[1672728491203,49.06371924,1219.4,1219.3,0.65042295]
[1672728493147,58.90461924,1219.4,1219.3,0.65042295]
[1672728497032,53.90461924,1219.4,1219.3,0.65042295]
[1672728497820,58.90461924,1219.4,1219.3,0.65042295]
[1672728500989,68.74551924,1219.4,1219.3,0.65042295]
[1672728501783,58.90461924,1219.4,1219.3,0.65042295]
[1672728507977,39.14571924,1219.4,1219.3,0.65042295]
[1672728508873,44.14571924,1219.4,1219.3,0.65042295]
[1672728509546,44.14571924,1219.4,1219.3,10.49213295]
[1672728509757,44.14571924,1219.4,1219.3,10.59113295]
[1672728510386,44.14571924,1219.4,1219.3,0.74942295]
[1672728510647,44.14571924,1219.4,1219.3,0.65042295]
[1672728512182,44.14571924,1219.4,1219.3,0.64805924]
[1672728514862,39.14571924,1219.4,1219.3,0.64805924]
[1672728515792,44.14571924,1219.4,1219.3,0.64805924]
[1672728517148,44.14571924,1219.4,1219.3,10.48976924]
[1672728517359,44.14571924,1219.4,1219.3,10.58876924]
[1672728517750,44.1419864,1219.4,1219.3,10.58876924]
[1672728519063,44.1419864,1219.4,1219.3,0.74705924]
[1672728519216,44.1419864,1219.4,1219.3,0.64805924]
[1672728521490,50.23176268,1219.4,1219.3,10.48976924]
[1672728521684,50.23176268,1219.4,1219.3,10.58876924]
[1672728522829,44.1419864,1219.4,1219.3,10.58876924]
[1672728523386,39.1419864,1219.4,1219.3,10.58876924]
[1672728524436,44.1419864,1219.4,1219.3,10.58876924]
[1672728530462,39.1419864,1219.4,1219.3,0.74705924]
[1672728530621,39.1419864,1219.4,1219.3,0.64805924]
[1672728531348,44.1419864,1219.4,1219.3,0.64805924]
[1672728532875,44.1439864,1219.4,1219.3,0.64805924]
[1672728533108,44.1419864,1219.4,1219.3,0.64805924]
[1672728533247,53.9828864,1219.4,1219.3,0.64805924]
[1672728537456,44.1419864,1219.4,1219.3,0.64805924]
[1672728540029,53.9828864,1219.4,1219.3,0.64805924]
[1672728542630,53.9828864,1219.4,1219.3,0.64486798]
[1672728543393,73.6646864,1219.4,1219.3,0.64486798]
[1672728543543,49.0599864,1219.4,1219.3,0.64486798]
[1672728545960,58.9008864,1219.4,1219.3,0.64486798]
[1672728548797,7.55513202,1219.3,1219.1,38.83965]
[1672728549063,9.14886114,1219.2,1219.1,38.83965]
[1672728549280,9.14886114,1219.2,1219.1,29.62795]
[1672728549721,44.14886114,1219.2,1219.1,29.62795]
[1672728550733,49.22827869,1219.2,1219.1,29.62795]
[1672728551065,49.22827869,1219.2,1219.1,33.26211782]
[1672728551379,44.14886114,1219.2,1219.1,29.62795]
[1672728551574,50.24397218,1219.2,1219.1,29.62795]
[1672728552123,44.14886114,1219.2,1219.1,29.62795]
[1672728552906,50.24397218,1219.2,1219.1,29.62795]
[1672728557517,45.24397218,1219.2,1219.1,29.62795]
[1672728558127,50.24397218,1219.2,1219.1,29.62795]
[1672728559776,9.14886114,1219.2,1219.1,29.62795]
[1672728560139,15.24397218,1219.2,1219.1,29.62795]
[1672728560454,44.14886114,1219.2,1219.1,29.62795]
[1672728561122,50.24397218,1219.2,1219.1,29.62795]
[1672728562217,50.24397218,1219.2,1219.1,19.78489]
[1672728562998,46.09511104,1219.2,1219.1,32.773467]
[1672728563173,10.07981449,1219.2,1219.1,25.24605248]
[1672728563386,10.07981449,1219.2,1219.1,24.752897]
[1672728563594,10.07981449,1219.2,1219.1,34.596217]
[1672728566205,10.07981449,1219.2,1219.1,36.90237248]
[1672728566206,5.0,1219.2,1219.1,36.90237248]
[1672728566455,9.30007629,1219.2,1219.1,37.13237248]
[1672728566996,9.30007629,1219.2,1219.1,35.31937248]
[1672728567209,9.30007629,1219.2,1219.1,34.826217]
[1672728568677,5.0,1219.2,1219.1,34.826217]
[1672728570246,9.29788831,1219.2,1219.1,34.826217]
[1672728571527,9.29813739,1219.2,1219.1,34.826217]
[1672728572503,9.29813739,1219.2,1219.1,34.82344827]
[1672728587647,4.29813739,1219.2,1219.1,34.82344827]
[1672728588603,9.29813739,1219.2,1219.1,34.82344827]
[1672728592593,9.29595816,1219.2,1219.1,35.31660375]
[1672728594490,4.29595816,1219.2,1219.1,35.31660375]
[1672728595604,9.29595816,1219.2,1219.1,35.31660375]
[1672728596002,9.29595816,1219.2,1219.1,33.49460375]
[1672728598914,9.29595816,1219.2,1219.1,35.30260375]
[1672728601465,4.29595816,1219.2,1219.1,35.30260375]
[1672728602428,9.29595816,1219.2,1219.1,35.30260375]
[1672728603477,9.29595816,1219.2,1219.1,0.09623127]
[1672728603478,10.07981449,1219.2,1219.1,0.09623127]
[1672728603739,10.07981449,1219.2,1219.0,29.62736127]
[1672728603893,9.29974769,1219.1,1219.0,29.62736127]
[1672728604106,9.29974769,1219.1,1219.0,29.85736127]
[1672728605384,9.29974769,1219.1,1219.0,34.9121314]
[1672728611204,4.29974769,1219.1,1219.0,34.9121314]
[1672728612344,9.29974769,1219.1,1219.0,34.9121314]
[1672728613955,9.29974769,1219.1,1219.0,35.54488321]
[1672728615963,9.29974769,1219.1,1219.0,35.54253107]
[1672728618263,4.29974769,1219.1,1219.0,35.54253107]
[1672728619174,9.29974769,1219.1,1219.0,35.54253107]
[1672728621326,9.29974769,1219.1,1219.0,30.48776094]
[1672728622684,9.29974769,1219.1,1219.0,30.25776094]
[1672728625404,8.68530781,1219.1,1219.0,30.48776094]
[1672728625741,9.29974769,1219.1,1219.0,30.48776094]
[1672728625895,5.0,1219.1,1219.0,30.48776094]
[1672728626371,5.0,1219.1,1219.0,35.60557103]
[1672728626525,9.29974769,1219.1,1219.0,35.60557103]
[1672728631397,4.29974769,1219.1,1219.0,35.60557103]
[1672728632477,9.29974769,1219.1,1219.0,35.60557103]
[1672728635297,9.29974769,1219.1,1219.0,35.55557103]
[1672728636860,9.29974769,1219.1,1219.0,30.43776094]
[1672728637957,9.29974769,1219.1,1219.0,30.38776094]
[1672728638587,4.29974769,1219.1,1219.0,30.38776094]
[1672728639197,9.29974769,1219.1,1219.0,30.38776094]
[1672728642751,9.29974769,1219.1,1219.0,30.63091642]
[1672728644992,9.29974769,1219.1,1219.0,30.38091642]
[1672728645306,4.29974769,1219.1,1219.0,30.38091642]
[1672728646086,9.29974769,1219.1,1219.0,30.38091642]
[1672728646302,9.29974769,1219.1,1219.0,30.38126642]
[1672728646621,9.29974769,1219.1,1219.0,30.15126642]
[1672728646974,9.29933541,1219.1,1219.0,30.15126642]
[1672728647178,5.0,1219.1,1219.0,30.10126642]
[1672728647514,5.0,1219.1,1219.0,29.60811094]
[1672728647515,10.07981449,1219.1,1219.0,29.60811094]
[1672728648871,5.0,1219.1,1219.0,29.60811094]
[1672728649926,10.07981449,1219.1,1219.0,29.60811094]
[1672728650085,5.0,1219.1,1219.0,29.60811094]
[1672728650295,10.07981449,1219.1,1219.0,29.60811094]
[1672728651699,5.0,1219.1,1219.0,29.60811094]
[1672728653198,10.07981449,1219.1,1219.0,29.60811094]
[1672728653344,5.0,1219.1,1219.0,29.60811094]
[1672728653763,9.29842341,1219.1,1219.0,29.60811094]
[1672728654629,9.29842341,1219.1,1219.0,30.10126642]
[1672728658052,9.29628661,1219.1,1219.0,30.10126642]
[1672728659498,4.29842341,1219.1,1219.0,30.10126642]
[1672728660279,9.29842341,1219.1,1219.0,30.10126642]
[1672728661660,9.29842341,1219.1,1219.0,30.25634832]
[1672728666412,4.29842341,1219.1,1219.0,30.25634832]
[1672728667410,9.29842341,1219.1,1219.0,30.25634832]
[1672728669350,9.29944617,1219.1,1219.0,30.25634832]
[1672728670738,5.0,1219.1,1219.0,30.25634832]
[1672728670947,9.29962144,1219.1,1219.0,30.25634832]
[1672728671157,9.29964283,1219.1,1219.0,30.25634832]
[1672728671403,9.2996306,1219.1,1219.0,30.25634832]
[1672728671784,10.07981449,1219.1,1219.0,30.25634832]
[1672728678134,5.0,1219.1,1219.0,30.25634832]
[1672728680969,5.0,1219.1,1219.0,30.25330511]
[1672728682053,9.30070217,1219.1,1219.0,30.25330511]
[1672728683255,10.07981449,1219.1,1219.0,30.25330511]
[1672728683575,10.07981449,1219.1,1219.0,20.40917511]
[1672728685311,10.07981449,1219.1,1219.0,30.25330511]
[1672728689619,10.07981449,1219.1,1219.0,30.20330511]
[1672728697177,5.07981449,1219.1,1219.0,30.20330511]
[1672728698250,10.07981449,1219.1,1219.0,30.20330511]
[1672728698476,10.07981449,1219.1,1219.0,30.90871046]
[1672728705646,10.07981449,1219.1,1219.0,32.17871046]
[1672728711016,10.07981449,1219.1,1219.0,32.17771046]
[1672728711328,5.07981449,1219.1,1219.0,32.17771046]
[1672728712217,10.07981449,1219.1,1219.0,32.17771046]
[1672728716454,10.07981449,1219.1,1219.0,31.68455498]
[1672728718322,5.07981449,1219.1,1219.0,31.68455498]
[1672728719286,10.07981449,1219.1,1219.0,31.68455498]
[1672728723056,5.0,1219.1,1219.0,31.68455498]
[1672728723475,11.09511104,1219.1,1219.0,31.68455498]
[1672728725312,6.09511104,1219.1,1219.0,31.68455498]
[1672728726343,11.09511104,1219.1,1219.0,31.68455498]
[1672728728733,5.0,1219.1,1219.0,31.68455498]
[1672728728944,11.09511104,1219.1,1219.0,31.68455498]
[1672728729173,5.0,1219.1,1219.0,31.68455498]
[1672728729521,11.09511104,1219.1,1219.0,31.68455498]
[1672728730114,5.0,1219.1,1219.0,31.63455498]
[1672728732480,41.77711104,1219.2,1219.0,31.63455498]
[1672728732622,45.85997218,1219.2,1219.0,31.63455498]
[1672728733528,5.0,1219.1,1219.0,31.63455498]
[1672728735166,11.09511104,1219.1,1219.0,31.63455498]
[1672728735401,5.0,1219.1,1219.0,31.63455498]
[1672728737089,11.09511104,1219.1,1219.0,31.63455498]
[1672728737509,11.09511104,1219.1,1219.0,31.53455498]
[1672728739408,6.09511104,1219.1,1219.0,31.53455498]
[1672728739789,6.09511104,1219.1,1219.0,31.7546308]
[1672728740402,11.09511104,1219.1,1219.0,31.7546308]
[1672728740607,11.09511104,1219.1,1219.0,12.0667208]
[1672728741241,11.09511104,1219.1,1219.0,2.2231408]
[1672728741467,11.09511104,1219.1,1219.0,2.1241408]
[1672728741806,15.24397218,1219.1,1219.0,2.1241408]
[1672728745129,50.24397218,1219.1,1219.0,2.1241408]
[1672728748958,14.2339982,1219.1,1219.0,21.8124008]
[1672728749129,15.24397218,1219.1,1219.0,21.9114008]
[1672728749550,9.14886114,1219.1,1219.0,21.9114008]
[1672728750949,15.24397218,1219.1,1219.0,21.9114008]
[1672728753915,15.24397218,1219.1,1219.0,12.0672708]
[1672728754292,15.24397218,1219.1,1219.0,21.9114008]
[1672728754876,15.24397218,1219.1,1219.0,12.0672708]
[1672728756288,15.24397218,1219.1,1219.0,2.2231408]
[1672728756661,15.24397218,1219.1,1219.0,2.1241408]
[1672728759236,9.14886114,1219.1,1219.0,2.1241408]
[1672728759444,9.76496114,1219.1,1219.0,2.1241408]
[1672728759909,44.76496114,1219.1,1219.0,2.12037739]
[1672728760445,50.86663421,1219.1,1219.0,2.12037739]
[1672728760949,50.86697287,1219.1,1219.0,2.12037739]
[1672728764311,44.76496114,1219.1,1219.0,2.12037739]
[1672728766909,39.76496114,1219.1,1219.0,2.12037739]
[1672728767737,44.76496114,1219.1,1219.0,2.12037739]
[1672728768948,50.86631447,1219.1,1219.0,2.12037739]
[1672728769320,44.76496114,1219.1,1219.0,2.12037739]
[1672728773903,39.76496114,1219.1,1219.0,2.12037739]
[1672728775217,44.76496114,1219.1,1219.0,2.12037739]
[1672728779057,46.58996114,1219.1,1219.0,2.12037739]
[1672728780499,46.58996114,1219.1,1219.0,2.11837546]
[1672728781119,41.58996114,1219.1,1219.0,2.11837546]
[1672728781946,46.58996114,1219.1,1219.0,2.11837546]
[1672728784261,44.76496114,1219.1,1219.0,2.11837546]
[1672728787453,49.68296114,1219.1,1219.0,2.11837546]
[1672728788701,49.68496114,1219.1,1219.0,2.11837546]
[1672728788888,49.68296114,1219.1,1219.0,2.11837546]
[1672728792733,49.67965414,1219.1,1219.0,2.11837546]
[1672728793509,44.67965414,1219.1,1219.0,2.11837546]
[1672728794614,49.67965414,1219.1,1219.0,2.11837546]
[1672728795032,51.08447321,1219.1,1219.0,2.11837546]
[1672728795189,49.67965414,1219.1,1219.0,2.11837546]
[1672728801708,49.06355414,1219.1,1219.0,2.11837546]
[1672728806385,44.14555414,1219.1,1219.0,2.11837546]
[1672728813040,44.14555414,1219.1,1219.0,2.11450489]
[1672728813784,50.2489658,1219.1,1219.0,2.11450489]
[1672728814745,39.14555414,1219.1,1219.0,2.11450489]
[1672728815738,44.14555414,1219.1,1219.0,2.11450489]
[1672728821633,39.14555414,1219.1,1219.0,2.11450489]
[1672728822780,44.14555414,1219.1,1219.0,2.11450489]
[1672728823935,50.24808984,1219.1,1219.0,2.11450489]
[1672728824250,44.14555414,1219.1,1219.0,2.11450489]
[1672728825890,50.24787436,1219.1,1219.0,2.11450489]
[1672728826455,44.14555414,1219.1,1219.0,2.11450489]
[1672728828868,39.14555414,1219.1,1219.0,2.11450489]
[1672728829673,44.14555414,1219.1,1219.0,2.11450489]
[1672728833998,44.14555414,1219.1,1219.0,2.11234503]
[1672728835822,10.24874691,1219.1,1219.0,11.95647503]
[1672728835983,15.24874691,1219.1,1219.0,12.05547503]
[1672728836562,50.24874691,1219.1,1219.0,2.21134503]
[1672728836783,50.24874691,1219.1,1219.0,2.11234503]
[1672728846808,50.87155414,1219.1,1219.0,2.11234503]
[1672728847075,58.48765414,1219.1,1219.0,2.11234503]
[1672728849548,11.64965497,1219.0,1218.8,0.099]
[1672728849747,15.2478571,1218.9,1218.6,19.7520589]
[1672728849957,4.30261187,1218.7,1218.6,25.07160579]
[1672728850170,4.30261187,1218.7,1218.6,16.01760579]
[1672728850600,4.30261187,1218.7,1218.6,25.86496579]
[1672728850800,9.30261187,1218.7,1218.6,25.86496579]
[1672728852516,9.30261187,1218.7,1218.6,35.71232579]
[1672728853901,9.29998446,1218.7,1218.6,35.71232579]
[1672728854112,13.4488456,1218.7,1218.6,6.17082579]
[1672728854543,13.4488456,1218.7,1218.6,16.01818579]
[1672728855028,13.4488456,1218.7,1218.6,6.17082579]
[1672728857335,13.4488456,1218.7,1218.6,0.8512789]
[1672728857546,13.4488456,1218.7,1218.6,0.7522789]
[1672728859877,8.4488456,1218.7,1218.6,0.7522789]
[1672728860519,13.4488456,1218.7,1218.6,0.7522789]
[1672728866318,13.4488456,1218.7,1218.6,10.5996389]
[1672728866525,8.4488456,1218.7,1218.6,10.6146389]
[1672728866830,8.4488456,1218.7,1218.6,10.6986389]
[1672728867263,16.05632141,1218.7,1218.6,0.8512789]
[1672728867581,17.6891571,1218.7,1218.6,0.7522789]
[1672728868193,11.59016114,1218.7,1218.6,0.7522789]
[1672728868571,9.76516114,1218.7,1218.6,0.7522789]
[1672728869363,15.8641571,1218.7,1218.6,0.7522789]
[1672728869689,9.76516114,1218.7,1218.6,0.7522789]
[1672728869855,14.83468396,1218.7,1218.6,0.7522789]
[1672728870422,9.76516114,1218.7,1218.6,0.7522789]
[1672728871154,14.83496236,1218.7,1218.6,0.7522789]
[1672728871465,49.83496236,1218.7,1218.6,0.7522789]
[1672728873713,51.66196236,1218.7,1218.6,0.7522789]
[1672728873979,51.66196236,1218.7,1218.6,0.74891966]
[1672728874562,56.57996236,1218.7,1218.6,0.74891966]
[1672728874773,58.51016114,1218.7,1218.6,0.74891966]
[1672728875189,57.59059694,1218.7,1218.6,0.6740277]
[1672728875560,64.59059694,1218.7,1218.6,0.6740277]
[1672728878829,64.82059694,1218.7,1218.6,0.6740277]
[1672728880623,58.74016114,1218.7,1218.6,0.6740277]
[1672728881139,64.81908343,1218.7,1218.6,0.6740277]
[1672728885287,64.82108343,1218.7,1218.6,0.6740277]
[1672728885497,64.81908343,1218.7,1218.6,0.6740277]
[1672728885912,64.82278609,1218.7,1218.6,0.6740277]
[1672728886651,58.74016114,1218.7,1218.6,0.6740277]
[1672728887280,60.56716114,1218.7,1218.6,0.6740277]
[1672728888356,58.74016114,1218.7,1218.6,0.6740277]
[1672728890499,77.78963089,1218.7,1218.6,0.6740277]
[1672728893898,71.70660854,1218.7,1218.6,0.6740277]
[1672728894953,76.94457259,1218.7,1218.6,0.6740277]
[1672728895273,75.11757259,1218.7,1218.6,0.6740277]
[1672728898516,75.11757259,1218.7,1218.6,0.67137389]
[1672728900150,69.03330854,1218.7,1218.6,0.67137389]
[1672728901420,69.03069187,1218.7,1218.6,0.67137389]
[1672728902511,69.08422925,1218.7,1218.6,0.60423651]
[1672728902671,69.70052925,1218.7,1218.6,0.60423651]
[1672728903154,75.79027607,1218.7,1218.6,0.60423651]
[1672728903361,69.70052925,1218.7,1218.6,0.60423651]
[1672728907018,57.70052925,1218.7,1218.6,0.60423651]
[1672728907492,68.74531851,1218.7,1218.6,0.60423651]
[1672728908400,68.74551963,1218.7,1218.6,0.60423651]
[1672728909043,62.64699187,1218.7,1218.6,0.60423651]
[1672728909813,62.03069187,1218.7,1218.6,0.60423651]
[1672728910005,68.12896965,1218.7,1218.6,0.60423651]
[1672728910708,68.11696965,1218.7,1218.6,0.60423651]
[1672728912562,28.19896965,1218.7,1218.6,30.14631651]
[1672728912721,22.10069187,1218.7,1218.6,34.43706316]
[1672728912925,28.19896965,1218.7,1218.6,34.43706316]
[1672728913135,22.10069187,1218.7,1218.6,34.43706316]
[1672728913385,27.18162669,1218.7,1218.6,34.43706316]
[1672728913590,27.18162669,1218.7,1218.6,24.58970316]
[1672728913822,27.18162669,1218.7,1218.6,34.43706316]
[1672728914241,27.18162669,1218.7,1218.6,24.58970316]
[1672728914393,14.21517929,1218.7,1218.6,24.58970316]
[1672728915446,14.21517929,1218.7,1218.6,34.43706316]
[1672728915887,14.21517929,1218.7,1218.6,24.58970316]
[1672728918287,14.21517929,1218.7,1218.6,26.40070316]
[1672728918618,14.21517929,1218.7,1218.6,36.24806316]
[1672728921351,9.13424447,1218.7,1218.6,36.24806316]
[1672728921807,4.13424447,1218.7,1218.6,36.24806316]
[1672728922173,14.21517929,1218.7,1218.6,26.40070316]
[1672728922526,9.13424447,1218.7,1218.6,36.24806316]
[1672728922741,13.43102877,1218.7,1218.6,36.24806316]
[1672728922929,13.43102877,1218.7,1218.6,38.06506316]
[1672728923910,9.2967843,1218.7,1218.6,38.06506316]
[1672728925992,9.2987843,1218.7,1218.6,38.06206316]
[1672728926166,9.2967843,1218.7,1218.6,38.06506316]
[1672728929582,9.2987843,1218.7,1218.6,38.06206316]
[1672728929799,9.2967843,1218.7,1218.6,38.06506316]
[1672728933271,9.2967843,1218.7,1218.6,38.06299907]
[1672728937387,9.2967843,1218.7,1218.6,33.87125242]
[1672728939826,4.2967843,1218.7,1218.6,33.87125242]
[1672728940726,9.2967843,1218.7,1218.6,33.87125242]
[1672728946844,4.2967843,1218.7,1218.6,33.87125242]
[1672728947377,40.14693482,1218.8,1218.6,33.87125242]
[1672728947709,44.22979596,1218.8,1218.6,36.43212466]
[1672728948036,9.30098023,1218.7,1218.6,36.43212466]
[1672728948648,5.0,1218.7,1218.6,36.43212466]
[1672728949299,10.08093482,1218.7,1218.6,36.43212466]
[1672728950137,5.0,1218.7,1218.6,36.43212466]
[1672728950533,10.08093482,1218.7,1218.6,36.43212466]
[1672728950893,5.0,1218.7,1218.6,36.43212466]
[1672728951263,10.08093482,1218.7,1218.6,36.43212466]
[1672728953668,10.08093482,1218.7,1218.6,32.05652303]
[1672728953931,5.08093482,1218.7,1218.6,32.05652303]
[1672728954824,10.08093482,1218.7,1218.6,32.05652303]
[1672728958949,10.08093482,1218.7,1218.6,30.23952303]
[1672728961680,10.08293482,1218.7,1218.6,30.23652303]
[1672728961986,10.08093482,1218.7,1218.6,30.23952303]
[1672728963282,10.08093482,1218.7,1218.6,35.30788233]
[1672728964883,10.08093482,1218.7,1218.6,35.91554122]
[1672728966933,5.08093482,1218.7,1218.6,35.91554122]
[1672728967833,10.08093482,1218.7,1218.6,35.91554122]
[1672728969769,10.08093482,1218.7,1218.6,39.56154122]
[1672728970504,5.0,1218.7,1218.6,39.56154122]
[1672728972527,9.30583609,1218.7,1218.6,39.56154122]
[1672728977284,9.30583609,1218.7,1218.6,39.55766463]
[1672728978862,4.30583609,1218.7,1218.6,37.73366463]
[1672728979909,9.30583609,1218.7,1218.6,37.73366463]
[1672728981683,9.30583609,1218.7,1218.6,38.22682011]
[1672728984464,9.30583609,1218.7,1218.6,36.40482011]
[1672728989682,4.30583609,1218.7,1218.6,36.40482011]
[1672728990210,9.30583609,1218.7,1218.6,36.40482011]
[1672728992021,10.08093482,1218.7,1218.6,11.14858533]
[1672728992365,10.08093482,1218.7,1218.6,1.30122533]
[1672728992560,10.08093482,1218.7,1218.6,1.20222533]
[1672728993798,10.08093482,1218.7,1218.6,11.04958533]
[1672728994012,10.08093482,1218.7,1218.6,11.14858533]
[1672728998898,14.22979596,1218.7,1218.6,20.99594533]
[1672728999578,14.22979596,1218.7,1218.6,11.14858533]
[1672729000230,14.22979596,1218.7,1218.6,11.1449517]
[1672729001287,14.22979596,1218.7,1218.6,20.9923117]
[1672729001955,14.22979596,1218.7,1218.6,1.2975917]
[1672729002106,15.24713892,1218.7,1218.6,1.1985917]
[1672729002470,9.14886114,1218.7,1218.6,1.1985917]
[1672729002641,14.2322283,1218.7,1218.6,1.1985917]
[1672729003728,9.14886114,1218.7,1218.6,1.1985917]
[1672729003901,15.24713892,1218.7,1218.6,1.1985917]
[1672729006572,15.86343892,1218.7,1218.6,1.1985917]
[1672729007808,50.86343892,1218.7,1218.6,1.1985917]
[1672729008835,44.76516114,1218.7,1218.6,1.1985917]
[1672729009093,49.84351114,1218.7,1218.6,1.1985917]
[1672729009513,14.84351114,1218.7,1218.6,11.0459517]
[1672729009662,14.84351114,1218.7,1218.6,20.9923117]
[1672729012021,14.22721114,1218.7,1218.6,30.8396717]
[1672729022457,9.22721114,1218.7,1218.6,30.8396717]
[1672729023226,9.22721114,1218.7,1218.6,30.83586674]
[1672729023442,14.22721114,1218.7,1218.6,30.83586674]
[1672729030836,14.22921114,1218.7,1218.6,30.83286674]
[1672729030982,49.22721114,1218.7,1218.6,30.83586674]
[1672729031194,44.22721114,1218.7,1218.6,30.83586674]
[1672729032196,49.22721114,1218.7,1218.6,30.83586674]
[1672729033352,49.22721114,1218.7,1218.6,20.98850674]
[1672729034612,49.22721114,1218.7,1218.6,30.83586674]
[1672729038294,44.22721114,1218.7,1218.6,30.83586674]
[1672729039248,49.22721114,1218.7,1218.6,30.83586674]
[1672729041037,14.22721114,1218.7,1218.6,30.83586674]
[1672729045188,9.22721114,1218.7,1218.6,30.83586674]
[1672729045613,9.22721114,1218.7,1218.6,30.83326863]
[1672729045823,9.22721114,1218.7,1218.6,30.79326863]
[1672729046299,14.22721114,1218.7,1218.6,30.79326863]
[1672729048436,14.22721114,1218.7,1218.6,11.09854863]
[1672729049977,14.22721114,1218.7,1218.6,20.94590863]
[1672729050209,14.22721114,1218.7,1218.6,30.79326863]
[1672729050805,14.22721114,1218.7,1218.6,20.94590863]
[1672729052298,9.22721114,1218.7,1218.6,20.94590863]
[1672729053249,14.22721114,1218.7,1218.6,20.94590863]
[1672729056106,14.23723005,1218.7,1218.6,20.94590863]
[1672729056332,9.14886114,1218.7,1218.6,20.94590863]
[1672729056512,49.23721136,1218.7,1218.6,20.94590863]
[1672729056682,44.14886114,1218.7,1218.6,20.94590863]
[1672729056915,49.23721348,1218.7,1218.6,20.94590863]
[1672729057140,49.23721348,1218.7,1218.6,30.79326863]
[1672729057356,49.23721348,1218.7,1218.6,20.94590863]
[1672729057761,49.23721348,1218.7,1218.6,30.79326863]
[1672729059140,39.14886114,1218.7,1218.6,30.79326863]
[1672729060185,49.23742329,1218.7,1218.6,30.79326863]
[1672729065828,49.23742329,1218.7,1218.6,30.78977884]
[1672729066613,14.23742329,1218.7,1218.6,30.78977884]
[1672729067882,9.23742329,1218.7,1218.6,30.78977884]
[1672729068935,14.23742329,1218.7,1218.6,30.78977884]
[1672729074907,9.23742329,1218.7,1218.6,30.78977884]
[1672729075862,14.23742329,1218.7,1218.6,30.78977884]
[1672729079794,9.14886114,1218.7,1218.6,1.24769884]
[1672729080037,15.86343892,1218.7,1218.6,1.14869884]
[1672729080798,15.86343892,1218.7,1218.6,10.99605884]
[1672729081009,15.86343892,1218.7,1218.6,11.09505884]
[1672729082743,50.86343892,1218.7,1218.6,11.09505884]
[1672729087127,50.86343892,1218.7,1218.6,1.24769884]
[1672729087331,50.86343892,1218.7,1218.6,1.14869884]
[1672729087564,45.86343892,1218.7,1218.6,1.14869884]
[1672729087757,45.86543892,1218.7,1218.6,1.14489456]
[1672729087955,50.86343892,1218.7,1218.6,1.14489456]
[1672729091424,50.86343892,1218.7,1218.6,10.99225456]
[1672729091624,50.86343892,1218.7,1218.6,11.09125456]
[1672729092716,50.86343892,1218.7,1218.6,1.24389456]
[1672729092927,50.24713892,1218.7,1218.6,1.14489456]
[1672729094033,45.24713892,1218.7,1218.6,1.14489456]
[1672729094342,50.24713892,1218.7,1218.6,1.14489456]
[1672729095603,50.86343892,1218.7,1218.6,1.14489456]
[1672729097451,52.68943892,1218.7,1218.6,1.14489456]
[1672729098230,46.59116114,1218.7,1218.6,1.14489456]
[1672729098638,52.68872834,1218.7,1218.6,1.14489456]
[1672729104752,50.86272834,1218.7,1218.6,1.14489456]
[1672729106274,45.86272834,1218.7,1218.6,1.14489456]
[1672729107220,50.86272834,1218.7,1218.6,1.14489456]
[1672729112685,50.86272834,1218.7,1218.6,1.14274127]
[1672729113238,45.86272834,1218.7,1218.6,1.14274127]
[1672729114275,50.86272834,1218.7,1218.6,1.14274127]
[1672729114904,44.76516114,1218.7,1218.6,1.14274127]
[1672729117893,50.8657913,1218.7,1218.6,1.14274127]
[1672729118323,44.76516114,1218.7,1218.6,1.14274127]
[1672729123266,49.68316114,1218.7,1218.6,1.14274127]
[1672729125224,44.68316114,1218.7,1218.6,1.14274127]
[1672729126326,49.68316114,1218.7,1218.6,1.14274127]
[1672729128000,51.50916114,1218.7,1218.6,1.14274127]
[1672729128306,51.50916114,1218.7,1218.6,1.02846715]
[1672729128307,51.73916114,1218.7,1218.6,1.02846715]
[1672729129964,51.73916114,1218.7,1218.6,1.13933049]
[1672729137247,49.91316114,1218.7,1218.6,1.13933049]
[1672729142725,44.91316114,1218.7,1218.6,1.13933049]
[1672729143779,49.91316114,1218.7,1218.6,1.13933049]
[1672729149804,44.91316114,1218.7,1218.6,1.13933049]
[1672729150016,44.91316114,1218.7,1218.6,1.02539745]
[1672729150633,19.20460255,1218.6,1218.4,9.94777]
[1672729150799,10.24727561,1218.5,1218.4,9.94777]
[1672729151322,45.24727561,1218.5,1218.4,9.94777]
[1672729151799,50.24727561,1218.5,1218.4,9.94777]
[1672729152657,49.23114332,1218.5,1218.4,9.94777]
[1672729153993,44.14886114,1218.5,1218.4,9.94777]
[1672729156701,39.14886114,1218.5,1218.4,9.94777]
[1672729157849,44.14886114,1218.5,1218.4,9.94777]
[1672729158528,50.24727561,1218.5,1218.4,9.94777]
[1672729158744,44.14886114,1218.5,1218.4,9.94777]
[1672729159054,50.24727561,1218.5,1218.4,9.94777]
[1672729159210,44.14886114,1218.5,1218.4,9.94777]
[1672729160493,50.24727561,1218.5,1218.4,9.94777]
[1672729160739,50.24727561,1218.5,1218.4,0.099]
[1672729160942,50.24727561,1218.5,1218.3,9.5112]
[1672729161098,14.23280907,1218.4,1218.3,9.5112]
[1672729161311,14.23280907,1218.4,1218.3,9.94879]
[1672729161554,14.23280907,1218.4,1218.3,0.099]
[1672729161851,14.23280907,1218.4,1218.3,9.84979]
[1672729161983,14.23280907,1218.4,1218.3,19.79858]
[1672729163013,14.23280907,1218.4,1218.3,10.45398031]
[1672729163884,14.23280907,1218.4,1218.3,20.30377031]
[1672729164152,14.23280907,1218.4,1218.3,10.45398031]
[1672729164650,14.23280907,1218.4,1218.3,30.15356031]
[1672729165457,14.23280907,1218.4,1218.3,20.30377031]
[1672729165673,14.22997639,1218.4,1218.3,20.30377031]
[1672729167134,14.22997639,1218.4,1218.3,10.45398031]
[1672729169233,9.22997639,1218.4,1218.3,10.45398031]
[1672729170073,9.22997639,1218.4,1218.3,20.30377031]
[1672729170285,14.22997639,1218.4,1218.3,20.30377031]
[1672729170496,14.22997639,1218.4,1218.3,10.45398031]
[1672729170766,9.14602846,1218.4,1218.3,10.45398031]
[1672729171125,9.14602846,1218.4,1218.3,20.30377031]
[1672729171561,14.23341359,1218.4,1218.3,20.30377031]
[1672729171991,14.23341359,1218.4,1218.3,30.15356031]
[1672729174873,14.23341359,1218.4,1218.3,0.60419031]
[1672729175022,14.23341359,1218.4,1218.3,0.50519031]
[1672729178445,14.23341359,1218.4,1218.3,20.20477031]
[1672729178603,14.23341359,1218.4,1218.3,30.15356031]
[1672729181250,9.23341359,1218.4,1218.3,20.30377031]
[1672729182105,14.23341359,1218.4,1218.3,20.30377031]
[1672729187692,14.23341359,1218.4,1218.3,30.15356031]
[1672729188130,14.23341359,1218.4,1218.3,30.15150327]
[1672729190817,14.23341359,1218.4,1218.3,20.30171327]
[1672729192566,14.23341359,1218.4,1218.3,10.45192327]
[1672729193918,14.23341359,1218.4,1218.3,20.30171327]